{"text_format":"1","workbook":"xlsx","n_sheets":2,"sheets":["Materials Order Sheet","07 Materials Log"],"not_rendered":{"charts":0,"images":1,"macros":1,"external_links":3,"defined_names":11,"comments":0,"pivot_tables":0},"unopened":[],"bounds":{"document_bytes":16777216,"sheet_cells":100000,"rows_first":2000,"rows_last":500,"rows_between":2000,"halvings":0,"cell_chars":16384,"cell_head_chars":4096},"cells_cut":0,"cells_raw":0,"read":"whole","date_system":"1900"}

{"sheet":"Materials Order Sheet","index":0,"n_rows":607,"n_cols":24,"rows_kept":607,"cut":false,"hidden":false,"merged":[[48,21,48,22],[48,25,48,26],[49,21,49,22],[49,25,49,26],[50,21,50,22],[50,25,50,26],[45,21,45,22],[45,25,45,26],[46,21,46,22],[46,25,46,26],[47,21,47,22],[47,25,47,26],[42,21,42,22],[42,25,42,26],[43,21,43,22],[43,25,43,26],[44,21,44,22],[44,25,44,26],[39,21,39,22],[39,25,39,26],[40,21,40,22],[40,25,40,26],[41,21,41,22],[41,25,41,26],[34,25,34,26],[35,25,35,26],[36,25,36,26],[37,25,37,26],[38,21,38,22],[38,25,38,26],[1,10,1,11],[1,13,4,16],[1,22,1,23],[2,10,2,12],[3,10,3,11],[4,10,4,11]]}
[]
[null,null,null,null,null,null,null,null,"Job No","Job No",{"$f":"'[3]Job Dashboard'!$D$9","v":10875},null,null,"NOT TO BE PRINTED",null,null,null,null,"Filling Materials Order Form",null,null,null,"KEY"]
[null,null,null,null,null,null,null,null,"Client","Client",{"$f":"'[3]Job Dashboard'!D10&\" \"&('[3]Job Dashboard'!F10)","v":"Rotech Engineering"},null,null,null,null,null,null,null,null,null,null,null,"REQ'S'N","STAGE 1"]
[null,null,null,null,null,null,null,null,"Enquiy #","Enquiry #",{"$f":"'[3]Job Dashboard'!$D$12","v":0},null,null,null,null,null,null,"°","degree sign to copy in work-sheet",null,null,null,"PO","STAGE 2"]
[null,null,null,null,null,null,null,null,"Client PO","Client PO",{"$f":"'[3]Job Dashboard'!$D$11","v":0}]
[]
["ITEM #","QTY","MATERIAL DESCRIPTION",null,null,"MATERIAL GRADE",null,"CATEGORY","SUPPLIER",null,"ORDER NO","ORDER DATE","DUE DATE","PRICE/VALUE","DISCOUNT ",null,"All material ordered for this job must be recorded in this log sheet.  "]
[1,null,null,null,null,null,null,null,"SUPPLIER TBC",null,null,null,null,null,null,null,"The idea is to prevent any double writing of data which can take time. "]
[2,null,null,null,null,null,null,null,"SUPPLIER TBC"]
[3,null,null,null,null,null,null,null,"SUPPLIER TBC"]
[4,null,null,null,null,null,null,null,"SUPPLIER TBC"]
[5,null,null,null,null,null,null,null,"SUPPLIER TBC"]
[6,null,null,null,null,null,null,null,"SUPPLIER TBC"]
[7,null,null,null,null,null,null,null,"SUPPLIER TBC"]
[8,null,null,null,null,null,null,null,"SUPPLIER TBC"]
[9,null,null,null,null,null,null,null,"SUPPLIER TBC"]
[10,null,null,null,null,null,null,null,"SUPPLIER TBC"]
[11,null,null,null,null,null,null,null,"SUPPLIER TBC"]
[12,null,null,null,null,null,null,null,"SUPPLIER TBC"]
[13,null,null,null,null,null,null,null,"SUPPLIER TBC"]
[14,null,null,null,null,null,null,null,"SUPPLIER TBC"]
[15,null,null,null,null,null,null,null,"SUPPLIER TBC"]
[16,null,null,null,null,null,null,null,"SUPPLIER TBC"]
[17,null,null,null,null,null,null,null,"SUPPLIER TBC"]
[18,null,null,null,null,null,null,null,"SUPPLIER TBC"]
[19,null,null,null,null,null,null,null,"SUPPLIER TBC"]
[20,null,null,null,null,null,null,null,"SUPPLIER TBC"]
[21,null,null,null,null,null,null,null,"SUPPLIER TBC"]
[22,null,null,null,null,null,null,null,"SUPPLIER TBC"]
[23,null,null,null,null,null,null,null,"SUPPLIER TBC"]
[24,null,null,null,null,null,null,null,"SUPPLIER TBC"]
[25,null,null,null,null,null,null,null,"SUPPLIER TBC",null,null,null,null,null,null,null,"STATUS","INCOMPLETE"]
[26,null,null,null,null,null,null,null,"SUPPLIER TBC"]
[27,null,null,null,null,null,null,null,"SUPPLIER TBC",null,null,null,null,null,null,null,null,"CATEGORY","DESCRIPTION"]
[28,null,null,null,null,null,null,null,"SUPPLIER TBC",null,null,null,null,null,null,null,null,"FASTENERS","All nuts, bolts, gaskets, U-bolt assy etc"]
[29,null,null,null,null,null,null,null,"SUPPLIER TBC",null,null,null,null,null,null,null,null,"STD PARTS","Flange, elbow, tee etc"]
[30,null,null,null,null,null,null,null,"SUPPLIER TBC",null,null,null,null,null,null,null,null,"PLATE","All plate"]
[31,null,null,null,null,null,null,null,"SUPPLIER TBC",null,null,null,null,null,null,null,null,"PIPE","Line pipe etc"]
[32,null,null,null,null,null,null,null,"SUPPLIER TBC",null,null,null,null,null,null,null,null,"STD STEEL","Channel, I-beams, angle, CHS, RHS, UB etc."]
[33,null,null,null,null,null,null,null,"SUPPLIER TBC",null,null,null,null,null,null,null,null,"SHEET STEEL","Sheet steel < 5mm thick"]
[34,null,null,null,null,null,null,null,"SUPPLIER TBC",null,null,null,null,null,null,null,null,"MISC","Any other relevant parts"]
[35,null,null,null,null,null,null,null,"SUPPLIER TBC"]
[36,null,null,null,null,null,null,null,"SUPPLIER TBC"]
[37,null,null,null,null,null,null,null,"SUPPLIER TBC"]
[38,null,null,null,null,null,null,null,"SUPPLIER TBC"]
[39,null,null,null,null,null,null,null,"SUPPLIER TBC"]
[40,null,null,null,null,null,null,null,"SUPPLIER TBC"]
[41,null,null,null,null,null,null,null,"SUPPLIER TBC"]
[42,null,null,null,null,null,null,null,"SUPPLIER TBC"]
[43,null,null,null,null,null,null,null,"SUPPLIER TBC"]
[44,null,null,null,null,null,null,null,"SUPPLIER TBC"]
[45,null,null,null,null,null,null,null,"SUPPLIER TBC"]
[46,null,null,null,null,null,null,null,"SUPPLIER TBC"]
[47,null,null,null,null,null,null,null,"SUPPLIER TBC"]
[48,null,null,null,null,null,null,null,"SUPPLIER TBC"]
[49,null,null,null,null,null,null,null,"SUPPLIER TBC"]
[50,null,null,null,null,null,null,null,"SUPPLIER TBC"]
[51,null,null,null,null,null,null,null,"SUPPLIER TBC"]
[52,null,null,null,null,null,null,null,"SUPPLIER TBC"]
[53,null,null,null,null,null,null,null,"SUPPLIER TBC"]
[54,null,null,null,null,null,null,null,"SUPPLIER TBC"]
[55,null,null,null,null,null,null,null,"SUPPLIER TBC"]
[56,null,null,null,null,null,null,null,"SUPPLIER TBC"]
[57,null,null,null,null,null,null,null,"SUPPLIER TBC"]
[58,null,null,null,null,null,null,null,"SUPPLIER TBC"]
[59,null,null,null,null,null,null,null,"SUPPLIER TBC"]
[60,null,null,null,null,null,null,null,"SUPPLIER TBC"]
[61,null,null,null,null,null,null,null,"SUPPLIER TBC"]
[62,null,null,null,null,null,null,null,"SUPPLIER TBC"]
[63,null,null,null,null,null,null,null,"SUPPLIER TBC"]
[64,null,null,null,null,null,null,null,"SUPPLIER TBC"]
[65,null,null,null,null,null,null,null,"SUPPLIER TBC"]
[66,null,null,null,null,null,null,null,"SUPPLIER TBC"]
[67,null,null,null,null,null,null,null,"SUPPLIER TBC"]
[68,null,null,null,null,null,null,null,"SUPPLIER TBC"]
[69,null,null,null,null,null,null,null,"SUPPLIER TBC"]
[70,null,null,null,null,null,null,null,"SUPPLIER TBC"]
[71,null,null,null,null,null,null,null,"SUPPLIER TBC"]
[72,null,null,null,null,null,null,null,"SUPPLIER TBC"]
[73,null,null,null,null,null,null,null,"SUPPLIER TBC"]
[74,null,null,null,null,null,null,null,"SUPPLIER TBC"]
[75,null,null,null,null,null,null,null,"SUPPLIER TBC"]
[76,null,null,null,null,null,null,null,"SUPPLIER TBC"]
[77,null,null,null,null,null,null,null,"SUPPLIER TBC"]
[78,null,null,null,null,null,null,null,"SUPPLIER TBC"]
[79,null,null,null,null,null,null,null,"SUPPLIER TBC"]
[80,null,null,null,null,null,null,null,"SUPPLIER TBC"]
[81,null,null,null,null,null,null,null,"SUPPLIER TBC"]
[82,null,null,null,null,null,null,null,"SUPPLIER TBC"]
[83,null,null,null,null,null,null,null,"SUPPLIER TBC"]
[84,null,null,null,null,null,null,null,"SUPPLIER TBC"]
[85,null,null,null,null,null,null,null,"SUPPLIER TBC"]
[86,null,null,null,null,null,null,null,"SUPPLIER TBC"]
[87,null,null,null,null,null,null,null,"SUPPLIER TBC"]
[88,null,null,null,null,null,null,null,"SUPPLIER TBC"]
[89,null,null,null,null,null,null,null,"SUPPLIER TBC"]
[90,null,null,null,null,null,null,null,"SUPPLIER TBC"]
[91,null,null,null,null,null,null,null,"SUPPLIER TBC"]
[92,null,null,null,null,null,null,null,"SUPPLIER TBC"]
[93,null,null,null,null,null,null,null,"SUPPLIER TBC"]
[94,null,null,null,null,null,null,null,"SUPPLIER TBC"]
[95,null,null,null,null,null,null,null,"SUPPLIER TBC"]
[96,null,null,null,null,null,null,null,"SUPPLIER TBC"]
[97,null,null,null,null,null,null,null,"SUPPLIER TBC"]
[98,null,null,null,null,null,null,null,"SUPPLIER TBC"]
[99,null,null,null,null,null,null,null,"SUPPLIER TBC"]
[100,null,null,null,null,null,null,null,"SUPPLIER TBC"]
[101,null,null,null,null,null,null,null,"SUPPLIER TBC"]
[102,null,null,null,null,null,null,null,"SUPPLIER TBC"]
[103,null,null,null,null,null,null,null,"SUPPLIER TBC"]
[104,null,null,null,null,null,null,null,"SUPPLIER TBC"]
[105,null,null,null,null,null,null,null,"SUPPLIER TBC"]
[106,null,null,null,null,null,null,null,"SUPPLIER TBC"]
[107,null,null,null,null,null,null,null,"SUPPLIER TBC"]
[108,null,null,null,null,null,null,null,"SUPPLIER TBC"]
[109,null,null,null,null,null,null,null,"SUPPLIER TBC"]
[110,null,null,null,null,null,null,null,"SUPPLIER TBC"]
[111,null,null,null,null,null,null,null,"SUPPLIER TBC"]
[112,null,null,null,null,null,null,null,"SUPPLIER TBC"]
[113,null,null,null,null,null,null,null,"SUPPLIER TBC"]
[114,null,null,null,null,null,null,null,"SUPPLIER TBC"]
[115,null,null,null,null,null,null,null,"SUPPLIER TBC"]
[116,null,null,null,null,null,null,null,"SUPPLIER TBC"]
[117,null,null,null,null,null,null,null,"SUPPLIER TBC"]
[118,null,null,null,null,null,null,null,"SUPPLIER TBC"]
[119,null,null,null,null,null,null,null,"SUPPLIER TBC"]
[120,null,null,null,null,null,null,null,"SUPPLIER TBC"]
[121,null,null,null,null,null,null,null,"SUPPLIER TBC"]
[122,null,null,null,null,null,null,null,"SUPPLIER TBC"]
[123,null,null,null,null,null,null,null,"SUPPLIER TBC"]
[124,null,null,null,null,null,null,null,"SUPPLIER TBC"]
[125,null,null,null,null,null,null,null,"SUPPLIER TBC"]
[126,null,null,null,null,null,null,null,"SUPPLIER TBC"]
[127,null,null,null,null,null,null,null,"SUPPLIER TBC"]
[128,null,null,null,null,null,null,null,"SUPPLIER TBC"]
[129,null,null,null,null,null,null,null,"SUPPLIER TBC"]
[130,null,null,null,null,null,null,null,"SUPPLIER TBC"]
[131,null,null,null,null,null,null,null,"SUPPLIER TBC"]
[132,null,null,null,null,null,null,null,"SUPPLIER TBC"]
[133,null,null,null,null,null,null,null,"SUPPLIER TBC"]
[134,null,null,null,null,null,null,null,"SUPPLIER TBC"]
[135,null,null,null,null,null,null,null,"SUPPLIER TBC"]
[136,null,null,null,null,null,null,null,"SUPPLIER TBC"]
[137,null,null,null,null,null,null,null,"SUPPLIER TBC"]
[138,null,null,null,null,null,null,null,"SUPPLIER TBC"]
[139,null,null,null,null,null,null,null,"SUPPLIER TBC"]
[140,null,null,null,null,null,null,null,"SUPPLIER TBC"]
[141,null,null,null,null,null,null,null,"SUPPLIER TBC"]
[142,null,null,null,null,null,null,null,"SUPPLIER TBC"]
[143,null,null,null,null,null,null,null,"SUPPLIER TBC"]
[144,null,null,null,null,null,null,null,"SUPPLIER TBC"]
[145,null,null,null,null,null,null,null,"SUPPLIER TBC"]
[146,null,null,null,null,null,null,null,"SUPPLIER TBC"]
[147,null,null,null,null,null,null,null,"SUPPLIER TBC"]
[148,null,null,null,null,null,null,null,"SUPPLIER TBC"]
[149,null,null,null,null,null,null,null,"SUPPLIER TBC"]
[150,null,null,null,null,null,null,null,"SUPPLIER TBC"]
[151,null,null,null,null,null,null,null,"SUPPLIER TBC"]
[152,null,null,null,null,null,null,null,"SUPPLIER TBC"]
[153,null,null,null,null,null,null,null,"SUPPLIER TBC"]
[154,null,null,null,null,null,null,null,"SUPPLIER TBC"]
[155,null,null,null,null,null,null,null,"SUPPLIER TBC"]
[156,null,null,null,null,null,null,null,"SUPPLIER TBC"]
[157,null,null,null,null,null,null,null,"SUPPLIER TBC"]
[158,null,null,null,null,null,null,null,"SUPPLIER TBC"]
[159,null,null,null,null,null,null,null,"SUPPLIER TBC"]
[160,null,null,null,null,null,null,null,"SUPPLIER TBC"]
[161,null,null,null,null,null,null,null,"SUPPLIER TBC"]
[162,null,null,null,null,null,null,null,"SUPPLIER TBC"]
[163,null,null,null,null,null,null,null,"SUPPLIER TBC"]
[164,null,null,null,null,null,null,null,"SUPPLIER TBC"]
[165,null,null,null,null,null,null,null,"SUPPLIER TBC"]
[166,null,null,null,null,null,null,null,"SUPPLIER TBC"]
[167,null,null,null,null,null,null,null,"SUPPLIER TBC"]
[168,null,null,null,null,null,null,null,"SUPPLIER TBC"]
[169,null,null,null,null,null,null,null,"SUPPLIER TBC"]
[170,null,null,null,null,null,null,null,"SUPPLIER TBC"]
[171,null,null,null,null,null,null,null,"SUPPLIER TBC"]
[172,null,null,null,null,null,null,null,"SUPPLIER TBC"]
[173,null,null,null,null,null,null,null,"SUPPLIER TBC"]
[174,null,null,null,null,null,null,null,"SUPPLIER TBC"]
[175,null,null,null,null,null,null,null,"SUPPLIER TBC"]
[176,null,null,null,null,null,null,null,"SUPPLIER TBC"]
[177,null,null,null,null,null,null,null,"SUPPLIER TBC"]
[178,null,null,null,null,null,null,null,"SUPPLIER TBC"]
[179,null,null,null,null,null,null,null,"SUPPLIER TBC"]
[180,null,null,null,null,null,null,null,"SUPPLIER TBC"]
[181,null,null,null,null,null,null,null,"SUPPLIER TBC"]
[182,null,null,null,null,null,null,null,"SUPPLIER TBC"]
[183,null,null,null,null,null,null,null,"SUPPLIER TBC"]
[184,null,null,null,null,null,null,null,"SUPPLIER TBC"]
[185,null,null,null,null,null,null,null,"SUPPLIER TBC"]
[186,null,null,null,null,null,null,null,"SUPPLIER TBC"]
[187,null,null,null,null,null,null,null,"SUPPLIER TBC"]
[188,null,null,null,null,null,null,null,"SUPPLIER TBC"]
[189,null,null,null,null,null,null,null,"SUPPLIER TBC"]
[190,null,null,null,null,null,null,null,"SUPPLIER TBC"]
[191,null,null,null,null,null,null,null,"SUPPLIER TBC"]
[192,null,null,null,null,null,null,null,"SUPPLIER TBC"]
[193,null,null,null,null,null,null,null,"SUPPLIER TBC"]
[194,null,null,null,null,null,null,null,"SUPPLIER TBC"]
[195,null,null,null,null,null,null,null,"SUPPLIER TBC"]
[196,null,null,null,null,null,null,null,"SUPPLIER TBC"]
[197,null,null,null,null,null,null,null,"SUPPLIER TBC"]
[198,null,null,null,null,null,null,null,"SUPPLIER TBC"]
[199,null,null,null,null,null,null,null,"SUPPLIER TBC"]
[200,null,null,null,null,null,null,null,"SUPPLIER TBC"]
[201,null,null,null,null,null,null,null,"SUPPLIER TBC"]
[202,null,null,null,null,null,null,null,"SUPPLIER TBC"]
[203,null,null,null,null,null,null,null,"SUPPLIER TBC"]
[204,null,null,null,null,null,null,null,"SUPPLIER TBC"]
[205,null,null,null,null,null,null,null,"SUPPLIER TBC"]
[206,null,null,null,null,null,null,null,"SUPPLIER TBC"]
[207,null,null,null,null,null,null,null,"SUPPLIER TBC"]
[208,null,null,null,null,null,null,null,"SUPPLIER TBC"]
[209,null,null,null,null,null,null,null,"SUPPLIER TBC"]
[210,null,null,null,null,null,null,null,"SUPPLIER TBC"]
[211,null,null,null,null,null,null,null,"SUPPLIER TBC"]
[212,null,null,null,null,null,null,null,"SUPPLIER TBC"]
[213,null,null,null,null,null,null,null,"SUPPLIER TBC"]
[214,null,null,null,null,null,null,null,"SUPPLIER TBC"]
[215,null,null,null,null,null,null,null,"SUPPLIER TBC"]
[216,null,null,null,null,null,null,null,"SUPPLIER TBC"]
[217,null,null,null,null,null,null,null,"SUPPLIER TBC"]
[218,null,null,null,null,null,null,null,"SUPPLIER TBC"]
[219,null,null,null,null,null,null,null,"SUPPLIER TBC"]
[220,null,null,null,null,null,null,null,"SUPPLIER TBC"]
[221,null,null,null,null,null,null,null,"SUPPLIER TBC"]
[222,null,null,null,null,null,null,null,"SUPPLIER TBC"]
[223,null,null,null,null,null,null,null,"SUPPLIER TBC"]
[224,null,null,null,null,null,null,null,"SUPPLIER TBC"]
[225,null,null,null,null,null,null,null,"SUPPLIER TBC"]
[226,null,null,null,null,null,null,null,"SUPPLIER TBC"]
[227,null,null,null,null,null,null,null,"SUPPLIER TBC"]
[228,null,null,null,null,null,null,null,"SUPPLIER TBC"]
[229,null,null,null,null,null,null,null,"SUPPLIER TBC"]
[230,null,null,null,null,null,null,null,"SUPPLIER TBC"]
[231,null,null,null,null,null,null,null,"SUPPLIER TBC"]
[232,null,null,null,null,null,null,null,"SUPPLIER TBC"]
[233,null,null,null,null,null,null,null,"SUPPLIER TBC"]
[234,null,null,null,null,null,null,null,"SUPPLIER TBC"]
[235,null,null,null,null,null,null,null,"SUPPLIER TBC"]
[236,null,null,null,null,null,null,null,"SUPPLIER TBC"]
[237,null,null,null,null,null,null,null,"SUPPLIER TBC"]
[238,null,null,null,null,null,null,null,"SUPPLIER TBC"]
[239,null,null,null,null,null,null,null,"SUPPLIER TBC"]
[240,null,null,null,null,null,null,null,"SUPPLIER TBC"]
[241,null,null,null,null,null,null,null,"SUPPLIER TBC"]
[242,null,null,null,null,null,null,null,"SUPPLIER TBC"]
[243,null,null,null,null,null,null,null,"SUPPLIER TBC"]
[244,null,null,null,null,null,null,null,"SUPPLIER TBC"]
[245,null,null,null,null,null,null,null,"SUPPLIER TBC"]
[246,null,null,null,null,null,null,null,"SUPPLIER TBC"]
[247,null,null,null,null,null,null,null,"SUPPLIER TBC"]
[248,null,null,null,null,null,null,null,"SUPPLIER TBC"]
[249,null,null,null,null,null,null,null,"SUPPLIER TBC"]
[250,null,null,null,null,null,null,null,"SUPPLIER TBC"]
[251,null,null,null,null,null,null,null,"SUPPLIER TBC"]
[252,null,null,null,null,null,null,null,"SUPPLIER TBC"]
[253,null,null,null,null,null,null,null,"SUPPLIER TBC"]
[254,null,null,null,null,null,null,null,"SUPPLIER TBC"]
[255,null,null,null,null,null,null,null,"SUPPLIER TBC"]
[256,null,null,null,null,null,null,null,"SUPPLIER TBC"]
[257,null,null,null,null,null,null,null,"SUPPLIER TBC"]
[258,null,null,null,null,null,null,null,"SUPPLIER TBC"]
[259,null,null,null,null,null,null,null,"SUPPLIER TBC"]
[260,null,null,null,null,null,null,null,"SUPPLIER TBC"]
[261,null,null,null,null,null,null,null,"SUPPLIER TBC"]
[262,null,null,null,null,null,null,null,"SUPPLIER TBC"]
[263,null,null,null,null,null,null,null,"SUPPLIER TBC"]
[264,null,null,null,null,null,null,null,"SUPPLIER TBC"]
[265,null,null,null,null,null,null,null,"SUPPLIER TBC"]
[266,null,null,null,null,null,null,null,"SUPPLIER TBC"]
[267,null,null,null,null,null,null,null,"SUPPLIER TBC"]
[268,null,null,null,null,null,null,null,"SUPPLIER TBC"]
[269,null,null,null,null,null,null,null,"SUPPLIER TBC"]
[270,null,null,null,null,null,null,null,"SUPPLIER TBC"]
[271,null,null,null,null,null,null,null,"SUPPLIER TBC"]
[272,null,null,null,null,null,null,null,"SUPPLIER TBC"]
[273,null,null,null,null,null,null,null,"SUPPLIER TBC"]
[274,null,null,null,null,null,null,null,"SUPPLIER TBC"]
[275,null,null,null,null,null,null,null,"SUPPLIER TBC"]
[276,null,null,null,null,null,null,null,"SUPPLIER TBC"]
[277,null,null,null,null,null,null,null,"SUPPLIER TBC"]
[278,null,null,null,null,null,null,null,"SUPPLIER TBC"]
[279,null,null,null,null,null,null,null,"SUPPLIER TBC"]
[280,null,null,null,null,null,null,null,"SUPPLIER TBC"]
[281,null,null,null,null,null,null,null,"SUPPLIER TBC"]
[282,null,null,null,null,null,null,null,"SUPPLIER TBC"]
[283,null,null,null,null,null,null,null,"SUPPLIER TBC"]
[284,null,null,null,null,null,null,null,"SUPPLIER TBC"]
[285,null,null,null,null,null,null,null,"SUPPLIER TBC"]
[286,null,null,null,null,null,null,null,"SUPPLIER TBC"]
[287,null,null,null,null,null,null,null,"SUPPLIER TBC"]
[288,null,null,null,null,null,null,null,"SUPPLIER TBC"]
[289,null,null,null,null,null,null,null,"SUPPLIER TBC"]
[290,null,null,null,null,null,null,null,"SUPPLIER TBC"]
[291,null,null,null,null,null,null,null,"SUPPLIER TBC"]
[292,null,null,null,null,null,null,null,"SUPPLIER TBC"]
[293,null,null,null,null,null,null,null,"SUPPLIER TBC"]
[294,null,null,null,null,null,null,null,"SUPPLIER TBC"]
[295,null,null,null,null,null,null,null,"SUPPLIER TBC"]
[296,null,null,null,null,null,null,null,"SUPPLIER TBC"]
[297,null,null,null,null,null,null,null,"SUPPLIER TBC"]
[298,null,null,null,null,null,null,null,"SUPPLIER TBC"]
[299,null,null,null,null,null,null,null,"SUPPLIER TBC"]
[300,null,null,null,null,null,null,null,"SUPPLIER TBC"]
[301,null,null,null,null,null,null,null,"SUPPLIER TBC"]
[302,null,null,null,null,null,null,null,"SUPPLIER TBC"]
[303,null,null,null,null,null,null,null,"SUPPLIER TBC"]
[304,null,null,null,null,null,null,null,"SUPPLIER TBC"]
[305,null,null,null,null,null,null,null,"SUPPLIER TBC"]
[306,null,null,null,null,null,null,null,"SUPPLIER TBC"]
[307,null,null,null,null,null,null,null,"SUPPLIER TBC"]
[308,null,null,null,null,null,null,null,"SUPPLIER TBC"]
[309,null,null,null,null,null,null,null,"SUPPLIER TBC"]
[310,null,null,null,null,null,null,null,"SUPPLIER TBC"]
[311,null,null,null,null,null,null,null,"SUPPLIER TBC"]
[312,null,null,null,null,null,null,null,"SUPPLIER TBC"]
[313,null,null,null,null,null,null,null,"SUPPLIER TBC"]
[314,null,null,null,null,null,null,null,"SUPPLIER TBC"]
[315,null,null,null,null,null,null,null,"SUPPLIER TBC"]
[316,null,null,null,null,null,null,null,"SUPPLIER TBC"]
[317,null,null,null,null,null,null,null,"SUPPLIER TBC"]
[318,null,null,null,null,null,null,null,"SUPPLIER TBC"]
[319,null,null,null,null,null,null,null,"SUPPLIER TBC"]
[320,null,null,null,null,null,null,null,"SUPPLIER TBC"]
[321,null,null,null,null,null,null,null,"SUPPLIER TBC"]
[322,null,null,null,null,null,null,null,"SUPPLIER TBC"]
[323,null,null,null,null,null,null,null,"SUPPLIER TBC"]
[324,null,null,null,null,null,null,null,"SUPPLIER TBC"]
[325,null,null,null,null,null,null,null,"SUPPLIER TBC"]
[326,null,null,null,null,null,null,null,"SUPPLIER TBC"]
[327,null,null,null,null,null,null,null,"SUPPLIER TBC"]
[328,null,null,null,null,null,null,null,"SUPPLIER TBC"]
[329,null,null,null,null,null,null,null,"SUPPLIER TBC"]
[330,null,null,null,null,null,null,null,"SUPPLIER TBC"]
[331,null,null,null,null,null,null,null,"SUPPLIER TBC"]
[332,null,null,null,null,null,null,null,"SUPPLIER TBC"]
[333,null,null,null,null,null,null,null,"SUPPLIER TBC"]
[334,null,null,null,null,null,null,null,"SUPPLIER TBC"]
[335,null,null,null,null,null,null,null,"SUPPLIER TBC"]
[336,null,null,null,null,null,null,null,"SUPPLIER TBC"]
[337,null,null,null,null,null,null,null,"SUPPLIER TBC"]
[338,null,null,null,null,null,null,null,"SUPPLIER TBC"]
[339,null,null,null,null,null,null,null,"SUPPLIER TBC"]
[340,null,null,null,null,null,null,null,"SUPPLIER TBC"]
[341,null,null,null,null,null,null,null,"SUPPLIER TBC"]
[342,null,null,null,null,null,null,null,"SUPPLIER TBC"]
[343,null,null,null,null,null,null,null,"SUPPLIER TBC"]
[344,null,null,null,null,null,null,null,"SUPPLIER TBC"]
[345,null,null,null,null,null,null,null,"SUPPLIER TBC"]
[346,null,null,null,null,null,null,null,"SUPPLIER TBC"]
[347,null,null,null,null,null,null,null,"SUPPLIER TBC"]
[348,null,null,null,null,null,null,null,"SUPPLIER TBC"]
[349,null,null,null,null,null,null,null,"SUPPLIER TBC"]
[350,null,null,null,null,null,null,null,"SUPPLIER TBC"]
[351,null,null,null,null,null,null,null,"SUPPLIER TBC"]
[352,null,null,null,null,null,null,null,"SUPPLIER TBC"]
[353,null,null,null,null,null,null,null,"SUPPLIER TBC"]
[354,null,null,null,null,null,null,null,"SUPPLIER TBC"]
[355,null,null,null,null,null,null,null,"SUPPLIER TBC"]
[356,null,null,null,null,null,null,null,"SUPPLIER TBC"]
[357,null,null,null,null,null,null,null,"SUPPLIER TBC"]
[358,null,null,null,null,null,null,null,"SUPPLIER TBC"]
[359,null,null,null,null,null,null,null,"SUPPLIER TBC"]
[360,null,null,null,null,null,null,null,"SUPPLIER TBC"]
[361,null,null,null,null,null,null,null,"SUPPLIER TBC"]
[362,null,null,null,null,null,null,null,"SUPPLIER TBC"]
[363,null,null,null,null,null,null,null,"SUPPLIER TBC"]
[364,null,null,null,null,null,null,null,"SUPPLIER TBC"]
[365,null,null,null,null,null,null,null,"SUPPLIER TBC"]
[366,null,null,null,null,null,null,null,"SUPPLIER TBC"]
[367,null,null,null,null,null,null,null,"SUPPLIER TBC"]
[368,null,null,null,null,null,null,null,"SUPPLIER TBC"]
[369,null,null,null,null,null,null,null,"SUPPLIER TBC"]
[370,null,null,null,null,null,null,null,"SUPPLIER TBC"]
[371,null,null,null,null,null,null,null,"SUPPLIER TBC"]
[372,null,null,null,null,null,null,null,"SUPPLIER TBC"]
[373,null,null,null,null,null,null,null,"SUPPLIER TBC"]
[374,null,null,null,null,null,null,null,"SUPPLIER TBC"]
[375,null,null,null,null,null,null,null,"SUPPLIER TBC"]
[376,null,null,null,null,null,null,null,"SUPPLIER TBC"]
[377,null,null,null,null,null,null,null,"SUPPLIER TBC"]
[378,null,null,null,null,null,null,null,"SUPPLIER TBC"]
[379,null,null,null,null,null,null,null,"SUPPLIER TBC"]
[380,null,null,null,null,null,null,null,"SUPPLIER TBC"]
[381,null,null,null,null,null,null,null,"SUPPLIER TBC"]
[382,null,null,null,null,null,null,null,"SUPPLIER TBC"]
[383,null,null,null,null,null,null,null,"SUPPLIER TBC"]
[384,null,null,null,null,null,null,null,"SUPPLIER TBC"]
[385,null,null,null,null,null,null,null,"SUPPLIER TBC"]
[386,null,null,null,null,null,null,null,"SUPPLIER TBC"]
[387,null,null,null,null,null,null,null,"SUPPLIER TBC"]
[388,null,null,null,null,null,null,null,"SUPPLIER TBC"]
[389,null,null,null,null,null,null,null,"SUPPLIER TBC"]
[390,null,null,null,null,null,null,null,"SUPPLIER TBC"]
[391,null,null,null,null,null,null,null,"SUPPLIER TBC"]
[392,null,null,null,null,null,null,null,"SUPPLIER TBC"]
[393,null,null,null,null,null,null,null,"SUPPLIER TBC"]
[394,null,null,null,null,null,null,null,"SUPPLIER TBC"]
[395,null,null,null,null,null,null,null,"SUPPLIER TBC"]
[396,null,null,null,null,null,null,null,"SUPPLIER TBC"]
[397,null,null,null,null,null,null,null,"SUPPLIER TBC"]
[398,null,null,null,null,null,null,null,"SUPPLIER TBC"]
[399,null,null,null,null,null,null,null,"SUPPLIER TBC"]
[400,null,null,null,null,null,null,null,"SUPPLIER TBC"]
[401,null,null,null,null,null,null,null,"SUPPLIER TBC"]
[402,null,null,null,null,null,null,null,"SUPPLIER TBC"]
[403,null,null,null,null,null,null,null,"SUPPLIER TBC"]
[404,null,null,null,null,null,null,null,"SUPPLIER TBC"]
[405,null,null,null,null,null,null,null,"SUPPLIER TBC"]
[406,null,null,null,null,null,null,null,"SUPPLIER TBC"]
[407,null,null,null,null,null,null,null,"SUPPLIER TBC"]
[408,null,null,null,null,null,null,null,"SUPPLIER TBC"]
[409,null,null,null,null,null,null,null,"SUPPLIER TBC"]
[410,null,null,null,null,null,null,null,"SUPPLIER TBC"]
[411,null,null,null,null,null,null,null,"SUPPLIER TBC"]
[412,null,null,null,null,null,null,null,"SUPPLIER TBC"]
[413,null,null,null,null,null,null,null,"SUPPLIER TBC"]
[414,null,null,null,null,null,null,null,"SUPPLIER TBC"]
[415,null,null,null,null,null,null,null,"SUPPLIER TBC"]
[416,null,null,null,null,null,null,null,"SUPPLIER TBC"]
[417,null,null,null,null,null,null,null,"SUPPLIER TBC"]
[418,null,null,null,null,null,null,null,"SUPPLIER TBC"]
[419,null,null,null,null,null,null,null,"SUPPLIER TBC"]
[420,null,null,null,null,null,null,null,"SUPPLIER TBC"]
[421,null,null,null,null,null,null,null,"SUPPLIER TBC"]
[422,null,null,null,null,null,null,null,"SUPPLIER TBC"]
[423,null,null,null,null,null,null,null,"SUPPLIER TBC"]
[424,null,null,null,null,null,null,null,"SUPPLIER TBC"]
[425,null,null,null,null,null,null,null,"SUPPLIER TBC"]
[426,null,null,null,null,null,null,null,"SUPPLIER TBC"]
[427,null,null,null,null,null,null,null,"SUPPLIER TBC"]
[428,null,null,null,null,null,null,null,"SUPPLIER TBC"]
[429,null,null,null,null,null,null,null,"SUPPLIER TBC"]
[430,null,null,null,null,null,null,null,"SUPPLIER TBC"]
[431,null,null,null,null,null,null,null,"SUPPLIER TBC"]
[432,null,null,null,null,null,null,null,"SUPPLIER TBC"]
[433,null,null,null,null,null,null,null,"SUPPLIER TBC"]
[434,null,null,null,null,null,null,null,"SUPPLIER TBC"]
[435,null,null,null,null,null,null,null,"SUPPLIER TBC"]
[436,null,null,null,null,null,null,null,"SUPPLIER TBC"]
[437,null,null,null,null,null,null,null,"SUPPLIER TBC"]
[438,null,null,null,null,null,null,null,"SUPPLIER TBC"]
[439,null,null,null,null,null,null,null,"SUPPLIER TBC"]
[440,null,null,null,null,null,null,null,"SUPPLIER TBC"]
[441,null,null,null,null,null,null,null,"SUPPLIER TBC"]
[442,null,null,null,null,null,null,null,"SUPPLIER TBC"]
[443,null,null,null,null,null,null,null,"SUPPLIER TBC"]
[444,null,null,null,null,null,null,null,"SUPPLIER TBC"]
[445,null,null,null,null,null,null,null,"SUPPLIER TBC"]
[446,null,null,null,null,null,null,null,"SUPPLIER TBC"]
[447,null,null,null,null,null,null,null,"SUPPLIER TBC"]
[448,null,null,null,null,null,null,null,"SUPPLIER TBC"]
[449,null,null,null,null,null,null,null,"SUPPLIER TBC"]
[450,null,null,null,null,null,null,null,"SUPPLIER TBC"]
[451,null,null,null,null,null,null,null,"SUPPLIER TBC"]
[452,null,null,null,null,null,null,null,"SUPPLIER TBC"]
[453,null,null,null,null,null,null,null,"SUPPLIER TBC"]
[454,null,null,null,null,null,null,null,"SUPPLIER TBC"]
[455,null,null,null,null,null,null,null,"SUPPLIER TBC"]
[456,null,null,null,null,null,null,null,"SUPPLIER TBC"]
[457,null,null,null,null,null,null,null,"SUPPLIER TBC"]
[458,null,null,null,null,null,null,null,"SUPPLIER TBC"]
[459,null,null,null,null,null,null,null,"SUPPLIER TBC"]
[460,null,null,null,null,null,null,null,"SUPPLIER TBC"]
[461,null,null,null,null,null,null,null,"SUPPLIER TBC"]
[462,null,null,null,null,null,null,null,"SUPPLIER TBC"]
[463,null,null,null,null,null,null,null,"SUPPLIER TBC"]
[464,null,null,null,null,null,null,null,"SUPPLIER TBC"]
[465,null,null,null,null,null,null,null,"SUPPLIER TBC"]
[466,null,null,null,null,null,null,null,"SUPPLIER TBC"]
[467,null,null,null,null,null,null,null,"SUPPLIER TBC"]
[468,null,null,null,null,null,null,null,"SUPPLIER TBC"]
[469,null,null,null,null,null,null,null,"SUPPLIER TBC"]
[470,null,null,null,null,null,null,null,"SUPPLIER TBC"]
[471,null,null,null,null,null,null,null,"SUPPLIER TBC"]
[472,null,null,null,null,null,null,null,"SUPPLIER TBC"]
[473,null,null,null,null,null,null,null,"SUPPLIER TBC"]
[474,null,null,null,null,null,null,null,"SUPPLIER TBC"]
[475,null,null,null,null,null,null,null,"SUPPLIER TBC"]
[476,null,null,null,null,null,null,null,"SUPPLIER TBC"]
[477,null,null,null,null,null,null,null,"SUPPLIER TBC"]
[478,null,null,null,null,null,null,null,"SUPPLIER TBC"]
[479,null,null,null,null,null,null,null,"SUPPLIER TBC"]
[480,null,null,null,null,null,null,null,"SUPPLIER TBC"]
[481,null,null,null,null,null,null,null,"SUPPLIER TBC"]
[482,null,null,null,null,null,null,null,"SUPPLIER TBC"]
[483,null,null,null,null,null,null,null,"SUPPLIER TBC"]
[484,null,null,null,null,null,null,null,"SUPPLIER TBC"]
[485,null,null,null,null,null,null,null,"SUPPLIER TBC"]
[486,null,null,null,null,null,null,null,"SUPPLIER TBC"]
[487,null,null,null,null,null,null,null,"SUPPLIER TBC"]
[488,null,null,null,null,null,null,null,"SUPPLIER TBC"]
[489,null,null,null,null,null,null,null,"SUPPLIER TBC"]
[490,null,null,null,null,null,null,null,"SUPPLIER TBC"]
[491,null,null,null,null,null,null,null,"SUPPLIER TBC"]
[492,null,null,null,null,null,null,null,"SUPPLIER TBC"]
[493,null,null,null,null,null,null,null,"SUPPLIER TBC"]
[494,null,null,null,null,null,null,null,"SUPPLIER TBC"]
[495,null,null,null,null,null,null,null,"SUPPLIER TBC"]
[496,null,null,null,null,null,null,null,"SUPPLIER TBC"]
[497,null,null,null,null,null,null,null,"SUPPLIER TBC"]
[498,null,null,null,null,null,null,null,"SUPPLIER TBC"]
[499,null,null,null,null,null,null,null,"SUPPLIER TBC"]
[500,null,null,null,null,null,null,null,"SUPPLIER TBC"]
[501,null,null,null,null,null,null,null,"SUPPLIER TBC"]
[502,null,null,null,null,null,null,null,"SUPPLIER TBC"]
[503,null,null,null,null,null,null,null,"SUPPLIER TBC"]
[504,null,null,null,null,null,null,null,"SUPPLIER TBC"]
[505,null,null,null,null,null,null,null,"SUPPLIER TBC"]
[506,null,null,null,null,null,null,null,"SUPPLIER TBC"]
[507,null,null,null,null,null,null,null,"SUPPLIER TBC"]
[508,null,null,null,null,null,null,null,"SUPPLIER TBC"]
[509,null,null,null,null,null,null,null,"SUPPLIER TBC"]
[510,null,null,null,null,null,null,null,"SUPPLIER TBC"]
[511,null,null,null,null,null,null,null,"SUPPLIER TBC"]
[512,null,null,null,null,null,null,null,"SUPPLIER TBC"]
[513,null,null,null,null,null,null,null,"SUPPLIER TBC"]
[514,null,null,null,null,null,null,null,"SUPPLIER TBC"]
[515,null,null,null,null,null,null,null,"SUPPLIER TBC"]
[516,null,null,null,null,null,null,null,"SUPPLIER TBC"]
[517,null,null,null,null,null,null,null,"SUPPLIER TBC"]
[518,null,null,null,null,null,null,null,"SUPPLIER TBC"]
[519,null,null,null,null,null,null,null,"SUPPLIER TBC"]
[520,null,null,null,null,null,null,null,"SUPPLIER TBC"]
[521,null,null,null,null,null,null,null,"SUPPLIER TBC"]
[522,null,null,null,null,null,null,null,"SUPPLIER TBC"]
[523,null,null,null,null,null,null,null,"SUPPLIER TBC"]
[524,null,null,null,null,null,null,null,"SUPPLIER TBC"]
[525,null,null,null,null,null,null,null,"SUPPLIER TBC"]
[526,null,null,null,null,null,null,null,"SUPPLIER TBC"]
[527,null,null,null,null,null,null,null,"SUPPLIER TBC"]
[528,null,null,null,null,null,null,null,"SUPPLIER TBC"]
[529,null,null,null,null,null,null,null,"SUPPLIER TBC"]
[530,null,null,null,null,null,null,null,"SUPPLIER TBC"]
[531,null,null,null,null,null,null,null,"SUPPLIER TBC"]
[532,null,null,null,null,null,null,null,"SUPPLIER TBC"]
[533,null,null,null,null,null,null,null,"SUPPLIER TBC"]
[534,null,null,null,null,null,null,null,"SUPPLIER TBC"]
[535,null,null,null,null,null,null,null,"SUPPLIER TBC"]
[536,null,null,null,null,null,null,null,"SUPPLIER TBC"]
[537,null,null,null,null,null,null,null,"SUPPLIER TBC"]
[538,null,null,null,null,null,null,null,"SUPPLIER TBC"]
[539,null,null,null,null,null,null,null,"SUPPLIER TBC"]
[540,null,null,null,null,null,null,null,"SUPPLIER TBC"]
[541,null,null,null,null,null,null,null,"SUPPLIER TBC"]
[542,null,null,null,null,null,null,null,"SUPPLIER TBC"]
[543,null,null,null,null,null,null,null,"SUPPLIER TBC"]
[544,null,null,null,null,null,null,null,"SUPPLIER TBC"]
[545,null,null,null,null,null,null,null,"SUPPLIER TBC"]
[546,null,null,null,null,null,null,null,"SUPPLIER TBC"]
[547,null,null,null,null,null,null,null,"SUPPLIER TBC"]
[548,null,null,null,null,null,null,null,"SUPPLIER TBC"]
[549,null,null,null,null,null,null,null,"SUPPLIER TBC"]
[550,null,null,null,null,null,null,null,"SUPPLIER TBC"]
[551,null,null,null,null,null,null,null,"SUPPLIER TBC"]
[552,null,null,null,null,null,null,null,"SUPPLIER TBC"]
[553,null,null,null,null,null,null,null,"SUPPLIER TBC"]
[554,null,null,null,null,null,null,null,"SUPPLIER TBC"]
[555,null,null,null,null,null,null,null,"SUPPLIER TBC"]
[556,null,null,null,null,null,null,null,"SUPPLIER TBC"]
[557,null,null,null,null,null,null,null,"SUPPLIER TBC"]
[558,null,null,null,null,null,null,null,"SUPPLIER TBC"]
[559,null,null,null,null,null,null,null,"SUPPLIER TBC"]
[560,null,null,null,null,null,null,null,"SUPPLIER TBC"]
[561,null,null,null,null,null,null,null,"SUPPLIER TBC"]
[562,null,null,null,null,null,null,null,"SUPPLIER TBC"]
[563,null,null,null,null,null,null,null,"SUPPLIER TBC"]
[564,null,null,null,null,null,null,null,"SUPPLIER TBC"]
[565,null,null,null,null,null,null,null,"SUPPLIER TBC"]
[566,null,null,null,null,null,null,null,"SUPPLIER TBC"]
[567,null,null,null,null,null,null,null,"SUPPLIER TBC"]
[568,null,null,null,null,null,null,null,"SUPPLIER TBC"]
[569,null,null,null,null,null,null,null,"SUPPLIER TBC"]
[570,null,null,null,null,null,null,null,"SUPPLIER TBC"]
[571,null,null,null,null,null,null,null,"SUPPLIER TBC"]
[572,null,null,null,null,null,null,null,"SUPPLIER TBC"]
[573,null,null,null,null,null,null,null,"SUPPLIER TBC"]
[574,null,null,null,null,null,null,null,"SUPPLIER TBC"]
[575,null,null,null,null,null,null,null,"SUPPLIER TBC"]
[576,null,null,null,null,null,null,null,"SUPPLIER TBC"]
[577,null,null,null,null,null,null,null,"SUPPLIER TBC"]
[578,null,null,null,null,null,null,null,"SUPPLIER TBC"]
[579,null,null,null,null,null,null,null,"SUPPLIER TBC"]
[580,null,null,null,null,null,null,null,"SUPPLIER TBC"]
[581,null,null,null,null,null,null,null,"SUPPLIER TBC"]
[582,null,null,null,null,null,null,null,"SUPPLIER TBC"]
[583,null,null,null,null,null,null,null,"SUPPLIER TBC"]
[584,null,null,null,null,null,null,null,"SUPPLIER TBC"]
[585,null,null,null,null,null,null,null,"SUPPLIER TBC"]
[586,null,null,null,null,null,null,null,"SUPPLIER TBC"]
[587,null,null,null,null,null,null,null,"SUPPLIER TBC"]
[588,null,null,null,null,null,null,null,"SUPPLIER TBC"]
[589,null,null,null,null,null,null,null,"SUPPLIER TBC"]
[590,null,null,null,null,null,null,null,"SUPPLIER TBC"]
[591,null,null,null,null,null,null,null,"SUPPLIER TBC"]
[592,null,null,null,null,null,null,null,"SUPPLIER TBC"]
[593,null,null,null,null,null,null,null,"SUPPLIER TBC"]
[594,null,null,null,null,null,null,null,"SUPPLIER TBC"]
[595,null,null,null,null,null,null,null,"SUPPLIER TBC"]
[596,null,null,null,null,null,null,null,"SUPPLIER TBC"]
[597,null,null,null,null,null,null,null,"SUPPLIER TBC"]
[598,null,null,null,null,null,null,null,"SUPPLIER TBC"]
[599,null,null,null,null,null,null,null,"SUPPLIER TBC"]
[600,null,null,null,null,null,null,null,"SUPPLIER TBC"]

{"sheet":"07 Materials Log","index":1,"n_rows":33,"n_cols":9,"rows_kept":33,"cut":false,"hidden":false,"merged":[[3,6,3,8],[1,6,1,8],[2,6,2,8]]}
[]
[null,null,null,null,null,"Job No:"]
[null,null,null,null,null,"Recevied by:"]
[null,null,null,null,null,"Client:"]
[]
[]
["Item No","Material Description","IRC Cast No","Material Grade","Qty","SUPPLIER","ADVICE NO","Date Rec'd","Comments"]
[{"$f":"'Materials Order Sheet'!A8","v":1},{"$f":"'Materials Order Sheet'!C8","v":0},null,{"$f":"'Materials Order Sheet'!F8","v":0},{"$f":"'Materials Order Sheet'!B8","v":0},{"$f":"'Materials Order Sheet'!I8","v":"SUPPLIER TBC"},{"$f":"'Materials Order Sheet'!K8","v":0}]
[{"$f":"'Materials Order Sheet'!A9","v":2},{"$f":"'Materials Order Sheet'!C9","v":0},null,{"$f":"'Materials Order Sheet'!F9","v":0},{"$f":"'Materials Order Sheet'!B9","v":0},{"$f":"'Materials Order Sheet'!I9","v":"SUPPLIER TBC"},{"$f":"'Materials Order Sheet'!K9","v":0}]
[{"$f":"'Materials Order Sheet'!A10","v":3},{"$f":"'Materials Order Sheet'!C10","v":0},null,{"$f":"'Materials Order Sheet'!F10","v":0},{"$f":"'Materials Order Sheet'!B10","v":0},{"$f":"'Materials Order Sheet'!I10","v":"SUPPLIER TBC"},{"$f":"'Materials Order Sheet'!K10","v":0}]
[{"$f":"'Materials Order Sheet'!A11","v":4},{"$f":"'Materials Order Sheet'!C11","v":0},null,{"$f":"'Materials Order Sheet'!F11","v":0},{"$f":"'Materials Order Sheet'!B11","v":0},{"$f":"'Materials Order Sheet'!I11","v":"SUPPLIER TBC"},{"$f":"'Materials Order Sheet'!K11","v":0}]
[{"$f":"'Materials Order Sheet'!A12","v":5},{"$f":"'Materials Order Sheet'!C12","v":0},null,{"$f":"'Materials Order Sheet'!F12","v":0},{"$f":"'Materials Order Sheet'!B12","v":0},{"$f":"'Materials Order Sheet'!I12","v":"SUPPLIER TBC"},{"$f":"'Materials Order Sheet'!K12","v":0}]
[{"$f":"'Materials Order Sheet'!A13","v":6},{"$f":"'Materials Order Sheet'!C13","v":0},null,{"$f":"'Materials Order Sheet'!F13","v":0},{"$f":"'Materials Order Sheet'!B13","v":0},{"$f":"'Materials Order Sheet'!I13","v":"SUPPLIER TBC"},{"$f":"'Materials Order Sheet'!K13","v":0}]
[{"$f":"'Materials Order Sheet'!A14","v":7},{"$f":"'Materials Order Sheet'!C14","v":0},null,{"$f":"'Materials Order Sheet'!F14","v":0},{"$f":"'Materials Order Sheet'!B14","v":0},{"$f":"'Materials Order Sheet'!I14","v":"SUPPLIER TBC"},{"$f":"'Materials Order Sheet'!K14","v":0}]
[{"$f":"'Materials Order Sheet'!A15","v":8},{"$f":"'Materials Order Sheet'!C15","v":0},null,{"$f":"'Materials Order Sheet'!F15","v":0},{"$f":"'Materials Order Sheet'!B15","v":0},{"$f":"'Materials Order Sheet'!I15","v":"SUPPLIER TBC"},{"$f":"'Materials Order Sheet'!K15","v":0}]
[{"$f":"'Materials Order Sheet'!A16","v":9},{"$f":"'Materials Order Sheet'!C16","v":0},null,{"$f":"'Materials Order Sheet'!F16","v":0},{"$f":"'Materials Order Sheet'!B16","v":0},{"$f":"'Materials Order Sheet'!I16","v":"SUPPLIER TBC"},{"$f":"'Materials Order Sheet'!K16","v":0}]
[{"$f":"'Materials Order Sheet'!A17","v":10},{"$f":"'Materials Order Sheet'!C17","v":0},null,{"$f":"'Materials Order Sheet'!F17","v":0},{"$f":"'Materials Order Sheet'!B17","v":0},{"$f":"'Materials Order Sheet'!I17","v":"SUPPLIER TBC"},{"$f":"'Materials Order Sheet'!K17","v":0}]
[{"$f":"'Materials Order Sheet'!A18","v":11},{"$f":"'Materials Order Sheet'!C18","v":0},null,{"$f":"'Materials Order Sheet'!F18","v":0},{"$f":"'Materials Order Sheet'!B18","v":0},{"$f":"'Materials Order Sheet'!I18","v":"SUPPLIER TBC"},{"$f":"'Materials Order Sheet'!K18","v":0}]
[{"$f":"'Materials Order Sheet'!A19","v":12},{"$f":"'Materials Order Sheet'!C19","v":0},null,{"$f":"'Materials Order Sheet'!F19","v":0},{"$f":"'Materials Order Sheet'!B19","v":0},{"$f":"'Materials Order Sheet'!I19","v":"SUPPLIER TBC"},{"$f":"'Materials Order Sheet'!K19","v":0}]
[{"$f":"'Materials Order Sheet'!A20","v":13},{"$f":"'Materials Order Sheet'!C20","v":0},null,{"$f":"'Materials Order Sheet'!F20","v":0},{"$f":"'Materials Order Sheet'!B20","v":0},{"$f":"'Materials Order Sheet'!I20","v":"SUPPLIER TBC"},{"$f":"'Materials Order Sheet'!K20","v":0}]
[{"$f":"'Materials Order Sheet'!A21","v":14},{"$f":"'Materials Order Sheet'!C21","v":0},null,{"$f":"'Materials Order Sheet'!F21","v":0},{"$f":"'Materials Order Sheet'!B21","v":0},{"$f":"'Materials Order Sheet'!I21","v":"SUPPLIER TBC"},{"$f":"'Materials Order Sheet'!K21","v":0}]
[{"$f":"'Materials Order Sheet'!A22","v":15},{"$f":"'Materials Order Sheet'!C22","v":0},null,{"$f":"'Materials Order Sheet'!F22","v":0},{"$f":"'Materials Order Sheet'!B22","v":0},{"$f":"'Materials Order Sheet'!I22","v":"SUPPLIER TBC"},{"$f":"'Materials Order Sheet'!K22","v":0}]
[{"$f":"'Materials Order Sheet'!A23","v":16},{"$f":"'Materials Order Sheet'!C23","v":0},null,{"$f":"'Materials Order Sheet'!F23","v":0},{"$f":"'Materials Order Sheet'!B23","v":0},{"$f":"'Materials Order Sheet'!I23","v":"SUPPLIER TBC"},{"$f":"'Materials Order Sheet'!K23","v":0}]
[{"$f":"'Materials Order Sheet'!A24","v":17},{"$f":"'Materials Order Sheet'!C24","v":0},null,{"$f":"'Materials Order Sheet'!F24","v":0},{"$f":"'Materials Order Sheet'!B24","v":0},{"$f":"'Materials Order Sheet'!I24","v":"SUPPLIER TBC"},{"$f":"'Materials Order Sheet'!K24","v":0}]
[{"$f":"'Materials Order Sheet'!A25","v":18},{"$f":"'Materials Order Sheet'!C25","v":0},null,{"$f":"'Materials Order Sheet'!F25","v":0},{"$f":"'Materials Order Sheet'!B25","v":0},{"$f":"'Materials Order Sheet'!I25","v":"SUPPLIER TBC"},{"$f":"'Materials Order Sheet'!K25","v":0}]
[{"$f":"'Materials Order Sheet'!A26","v":19},{"$f":"'Materials Order Sheet'!C26","v":0},null,{"$f":"'Materials Order Sheet'!F26","v":0},{"$f":"'Materials Order Sheet'!B26","v":0},{"$f":"'Materials Order Sheet'!I26","v":"SUPPLIER TBC"},{"$f":"'Materials Order Sheet'!K26","v":0}]
[{"$f":"'Materials Order Sheet'!A27","v":20},{"$f":"'Materials Order Sheet'!C27","v":0},null,{"$f":"'Materials Order Sheet'!F27","v":0},{"$f":"'Materials Order Sheet'!B27","v":0},{"$f":"'Materials Order Sheet'!I27","v":"SUPPLIER TBC"},{"$f":"'Materials Order Sheet'!K27","v":0}]
[{"$f":"'Materials Order Sheet'!A28","v":21},{"$f":"'Materials Order Sheet'!C28","v":0},null,{"$f":"'Materials Order Sheet'!F28","v":0},{"$f":"'Materials Order Sheet'!B28","v":0},{"$f":"'Materials Order Sheet'!I28","v":"SUPPLIER TBC"},{"$f":"'Materials Order Sheet'!K28","v":0}]
[{"$f":"'Materials Order Sheet'!A29","v":22},{"$f":"'Materials Order Sheet'!C29","v":0},null,{"$f":"'Materials Order Sheet'!F29","v":0},{"$f":"'Materials Order Sheet'!B29","v":0},{"$f":"'Materials Order Sheet'!I29","v":"SUPPLIER TBC"},{"$f":"'Materials Order Sheet'!K29","v":0}]
[{"$f":"'Materials Order Sheet'!A30","v":23},{"$f":"'Materials Order Sheet'!C30","v":0},null,{"$f":"'Materials Order Sheet'!F30","v":0},{"$f":"'Materials Order Sheet'!B30","v":0},{"$f":"'Materials Order Sheet'!I30","v":"SUPPLIER TBC"},{"$f":"'Materials Order Sheet'!K30","v":0}]
[{"$f":"'Materials Order Sheet'!A31","v":24},{"$f":"'Materials Order Sheet'!C31","v":0},null,{"$f":"'Materials Order Sheet'!F31","v":0},{"$f":"'Materials Order Sheet'!B31","v":0},{"$f":"'Materials Order Sheet'!I31","v":"SUPPLIER TBC"},{"$f":"'Materials Order Sheet'!K31","v":0}]
[{"$f":"'Materials Order Sheet'!A32","v":25},{"$f":"'Materials Order Sheet'!C32","v":0},null,{"$f":"'Materials Order Sheet'!F32","v":0},{"$f":"'Materials Order Sheet'!B32","v":0},{"$f":"'Materials Order Sheet'!I32","v":"SUPPLIER TBC"},{"$f":"'Materials Order Sheet'!K32","v":0}]
[{"$f":"'Materials Order Sheet'!A33","v":26},{"$f":"'Materials Order Sheet'!C33","v":0},null,{"$f":"'Materials Order Sheet'!F33","v":0},{"$f":"'Materials Order Sheet'!B33","v":0},{"$f":"'Materials Order Sheet'!I33","v":"SUPPLIER TBC"},{"$f":"'Materials Order Sheet'!K33","v":0}]